[Event "Titled Tuesday Blitz June 20 Late 2023"]
[White "Goryachkina, Aleksandra"]
[Black "Turner, Max N"]
[WhiteFideId "4147103"]
[BlackFideId "447722"]
[WhiteElo "2471"]
[BlackElo "2157"]
[Result "1-0"]
[Round "6"]
[TimeControl "180+2"]
[Date "2023.06.20"]
[WhiteClock "0:00:16"]
[BlackClock "0:00:06"]
[Board "62"]

1. e4 {[%clk 0:00:41]}  e5 {[%clk 0:02:58]} 2. Nf3 {[%clk 0:00:40]}  Nc6 {[%clk 0:02:58]} 3. Bc4 {[%clk 0:00:40]}  Bc5 {[%clk 0:02:58]} 4. d3 {[%clk 0:00:40]}  Nf6 {[%clk 0:02:57]} 5. c3 {[%clk 0:00:41]}  d6 {[%clk 0:02:57]} 6. Nbd2 {[%clk 0:00:41]}  h6 {[%clk 0:02:57]} 7. h3 {[%clk 0:00:41]}  a6 {[%clk 0:02:57]} 8. Nf1 {[%clk 0:00:41]}  Ba7 {[%clk 0:02:57]} 9. a4 {[%clk 0:00:40]}  d5 {[%clk 0:02:50]} 10. exd5 {[%clk 0:00:40]}  Nxd5 {[%clk 0:02:51]} 11. Qb3 {[%clk 0:00:38]}  Na5 {[%clk 0:02:46]} 12. Qa2 {[%clk 0:00:38]}  Nxc4 {[%clk 0:02:39]} 13. Qxc4 {[%clk 0:00:39]}  O-O {[%clk 0:02:34]} 14. Qe4 {[%clk 0:00:39]}  f5 {[%clk 0:02:29]} 15. Qe2 {[%clk 0:00:39]}  e4 {[%clk 0:02:24]} 16. dxe4 {[%clk 0:00:39]}  fxe4 {[%clk 0:02:25]} 17. Nd4 {[%clk 0:00:39]}  Bxd4 {[%clk 0:02:23]} 18. cxd4 {[%clk 0:00:39]}  Kh8 {[%clk 0:02:12]} 19. Ng3 {[%clk 0:00:39]}  Nf4 {[%clk 0:02:10]} 20. Bxf4 {[%clk 0:00:39]}  Rxf4 {[%clk 0:02:09]} 21. Qe3 {[%clk 0:00:39]}  g5 {[%clk 0:01:52]} 22. O-O {[%clk 0:00:38]}  Qd5 {[%clk 0:01:51]} 23. Rac1 {[%clk 0:00:38]}  c6 {[%clk 0:01:51]} 24. Rc5 {[%clk 0:00:38]}  Qf7 {[%clk 0:01:46]} 25. Re5 {[%clk 0:00:38]}  Bf5 {[%clk 0:01:45]} 26. Nxf5 {[%clk 0:00:37]}  Rxf5 {[%clk 0:01:46]} 27. Qxe4 {[%clk 0:00:37]}  Rf8 {[%clk 0:01:46]} 28. Re7 {[%clk 0:00:34]}  Qd5 {[%clk 0:01:41]} 29. Qe3 {[%clk 0:00:32]}  Rf4 {[%clk 0:01:31]} 30. Rxb7 {[%clk 0:00:30]}  Qxd4 {[%clk 0:01:30]} 31. Qe6 {[%clk 0:00:23]}  Qf6 {[%clk 0:01:25]} 32. Qd7 {[%clk 0:00:19]}  Qg6 {[%clk 0:01:18]} 33. f3 {[%clk 0:00:17]}  Rxa4 {[%clk 0:01:11]} 34. Re1 {[%clk 0:00:15]}  Raf4 {[%clk 0:00:12]} 35. Re7 {[%clk 0:00:15]}  Qf6 {[%clk 0:00:04]} 36. Rh7+ {[%clk 0:00:14]}  Kg8 {[%clk 0:00:05]} 37. Qg7+ {[%clk 0:00:15]}  Qxg7 {[%clk 0:00:06]} 38. Rbxg7# {[%clk 0:00:16]} 1-0


[Site "https://www.chess.com"]

[Event "Titled Tuesday Blitz June 20 Late 2023"]
[White "Mattheii"]
[Black "Rastbod, Ali"]
[BlackFideId "12567477"]
[WhiteElo "2486"]
[BlackElo "2281"]
[Result "0-1"]
[Round "6"]
[TimeControl "180+2"]
[Date "2023.06.20"]
[WhiteClock "0:00:00"]
[BlackClock "0:00:17"]
[Board "63"]

1. d4 {[%clk 0:03:00]}  g6 {[%clk 0:02:54]} 2. c4 {[%clk 0:03:01]}  Bg7 {[%clk 0:02:54]} 3. Nc3 {[%clk 0:03:01]}  e6 {[%clk 0:02:54]} 4. e4 {[%clk 0:02:58]}  Ne7 {[%clk 0:02:54]} 5. Nf3 {[%clk 0:02:52]}  d5 {[%clk 0:02:54]} 6. cxd5 {[%clk 0:02:35]}  exd5 {[%clk 0:02:55]} 7. exd5 {[%clk 0:02:36]}  O-O {[%clk 0:02:47]} 8. Bd3 {[%clk 0:02:25]}  Nxd5 {[%clk 0:02:44]} 9. h3 {[%clk 0:02:22]}  Re8+ {[%clk 0:02:43]} 10. Ne2 {[%clk 0:02:21]}  c5 {[%clk 0:02:19]} 11. O-O {[%clk 0:02:10]}  cxd4 {[%clk 0:02:07]} 12. Nexd4 {[%clk 0:02:10]}  Nc6 {[%clk 0:02:01]} 13. Nxc6 {[%clk 0:01:40]}  bxc6 {[%clk 0:02:02]} 14. Bc4 {[%clk 0:01:23]}  Qb6 {[%clk 0:01:48]} 15. Qb3 {[%clk 0:00:50]}  h6 {[%clk 0:01:42]} 16. Bxd5 {[%clk 0:00:20]}  cxd5 {[%clk 0:01:41]} 17. Be3 {[%clk 0:00:21]}  Qa6 {[%clk 0:01:36]} 18. Rfd1 {[%clk 0:00:18]}  Be6 {[%clk 0:01:32]} 19. Bd4 {[%clk 0:00:18]}  Bf8 {[%clk 0:01:32]} 20. Qd3 {[%clk 0:00:11]}  Qb7 {[%clk 0:01:28]} 21. Qd2 {[%clk 0:00:11]}  Red8 {[%clk 0:01:19]} 22. Rac1 {[%clk 0:00:11]}  a5 {[%clk 0:01:18]} 23. a3 {[%clk 0:00:12]}  a4 {[%clk 0:01:18]} 24. Qf4 {[%clk 0:00:12]}  Bf5 {[%clk 0:00:50]} 25. Qe5 {[%clk 0:00:08]}  f6 {[%clk 0:00:35]} 26. Qxf6 {[%clk 0:00:09]}  Bg7 {[%clk 0:00:30]} 27. Qxg7+ {[%clk 0:00:07]}  Qxg7 {[%clk 0:00:31]} 28. Bxg7 {[%clk 0:00:08]}  Kxg7 {[%clk 0:00:32]} 29. Nd4 {[%clk 0:00:08]}  Bd7 {[%clk 0:00:26]} 30. Rc7 {[%clk 0:00:07]}  Rac8 {[%clk 0:00:27]} 31. Ne6+ {[%clk 0:00:05]}  Kf6 {[%clk 0:00:25]} 32. Nxd8 {[%clk 0:00:05]}  Rxc7 {[%clk 0:00:25]} 33. Rxd5 {[%clk 0:00:06]}  Ke7 {[%clk 0:00:24]} 34. Rd4 {[%clk 0:00:02]}  Kxd8 {[%clk 0:00:23]} 35. Rd6 {[%clk 0:00:03]}  Rc6 {[%clk 0:00:20]} 36. Rxc6 {[%clk 0:00:02]}  Bxc6 {[%clk 0:00:20]} 37. f4 {[%clk 0:00:03]}  Ke7 {[%clk 0:00:18]} 38. g4 {[%clk 0:00:03]}  Kd6 {[%clk 0:00:19]} 39. Kf2 {[%clk 0:00:04]}  Kc5 {[%clk 0:00:19]} 40. Ke3 {[%clk 0:00:05]}  Kc4 {[%clk 0:00:20]} 41. h4 {[%clk 0:00:04]}  Kb3 {[%clk 0:00:19]} 42. g5 {[%clk 0:00:03]}  hxg5 {[%clk 0:00:17]} 43. hxg5 {[%clk 0:00:00]}  Bd7 {[%clk 0:00:17]} 0-1


[Site "https://www.chess.com"]

[Event "Titled Tuesday Blitz June 20 Late 2023"]
[White "Czerw, Dawid"]
[Black "Amburgy, Ryan"]
[WhiteFideId "1145746"]
[BlackFideId "30924820"]
[WhiteElo "2144"]
[BlackElo "2134"]
[Result "1/2-1/2"]
[Round "6"]
[TimeControl "180+2"]
[Date "2023.06.20"]
[WhiteClock "0:00:18"]
[BlackClock "0:00:22"]
[Board "64"]

1. e4 {[%clk 0:03:00]}  e5 {[%clk 0:03:00]} 2. Nf3 {[%clk 0:03:01]}  Nc6 {[%clk 0:03:00]} 3. Bb5 {[%clk 0:03:02]}  a6 {[%clk 0:03:01]} 4. Ba4 {[%clk 0:03:02]}  Nf6 {[%clk 0:03:01]} 5. d4 {[%clk 0:03:03]}  exd4 {[%clk 0:03:00]} 6. O-O {[%clk 0:03:03]}  Be7 {[%clk 0:02:58]} 7. e5 {[%clk 0:03:02]}  Ne4 {[%clk 0:02:58]} 8. Nxd4 {[%clk 0:03:02]}  O-O {[%clk 0:02:57]} 9. Nf5 {[%clk 0:02:56]}  d5 {[%clk 0:02:53]} 10. Nxe7+ {[%clk 0:02:54]}  Nxe7 {[%clk 0:02:36]} 11. c3 {[%clk 0:02:53]}  Bf5 {[%clk 0:02:28]} 12. Bc2 {[%clk 0:02:52]}  h6 {[%clk 0:02:20]} 13. f4 {[%clk 0:02:48]}  c6 {[%clk 0:02:13]} 14. Be3 {[%clk 0:02:45]}  f6 {[%clk 0:01:57]} 15. Nd2 {[%clk 0:02:06]}  Nxd2 {[%clk 0:01:52]} 16. Qxd2 {[%clk 0:02:07]}  fxe5 {[%clk 0:01:48]} 17. fxe5 {[%clk 0:02:08]}  Qd7 {[%clk 0:01:48]} 18. Bc5 {[%clk 0:02:02]}  Bxc2 {[%clk 0:01:41]} 19. Qxc2 {[%clk 0:01:58]}  Qe6 {[%clk 0:01:38]} 20. Qe2 {[%clk 0:01:49]}  Rf5 {[%clk 0:01:25]} 21. Rae1 {[%clk 0:01:29]}  Raf8 {[%clk 0:01:21]} 22. Bxe7 {[%clk 0:01:24]}  Qxe7 {[%clk 0:01:21]} 23. Rxf5 {[%clk 0:01:19]}  Rxf5 {[%clk 0:01:22]} 24. e6 {[%clk 0:01:05]}  Kf8 {[%clk 0:00:40]} 25. Kh1 {[%clk 0:00:52]}  Qf6 {[%clk 0:00:33]} 26. h3 {[%clk 0:00:38]}  Ke7 {[%clk 0:00:32]} 27. Qe3 {[%clk 0:00:30]}  Rf1+ {[%clk 0:00:32]} 28. Rxf1 {[%clk 0:00:24]}  Qxf1+ {[%clk 0:00:33]} 29. Kh2 {[%clk 0:00:25]}  Qf5 {[%clk 0:00:32]} 30. Qb6 {[%clk 0:00:20]}  Qe5+ {[%clk 0:00:31]} 31. Kh1 {[%clk 0:00:18]}  Qe1+ {[%clk 0:00:19]} 32. Kh2 {[%clk 0:00:17]}  Qe5+ {[%clk 0:00:20]} 33. Kh1 {[%clk 0:00:18]}  Qe1+ {[%clk 0:00:21]} 34. Kh2 {[%clk 0:00:18]}  Qe5+ {[%clk 0:00:22]} 1/2-1/2


[Site "https://www.chess.com"]

[Event "Titled Tuesday Blitz June 20 Late 2023"]
[White "Sai Krishna G V"]
[Black "Balla, Tamas-Kristof"]
[WhiteFideId "5028280"]
[BlackFideId "1208497"]
[WhiteElo "2359"]
[BlackElo "2334"]
[Result "1-0"]
[Round "6"]
[TimeControl "180+2"]
[Date "2023.06.20"]
[WhiteClock "0:00:53"]
[BlackClock "0:00:16"]
[Board "65"]

1. e4 {[%clk 0:02:57]}  c5 {[%clk 0:03:00]} 2. Nf3 {[%clk 0:02:57]}  Nc6 {[%clk 0:03:00]} 3. Nc3 {[%clk 0:02:57]}  g6 {[%clk 0:02:59]} 4. h4 {[%clk 0:02:55]}  Nf6 {[%clk 0:02:53]} 5. h5 {[%clk 0:02:51]}  Nxh5 {[%clk 0:02:44]} 6. Rxh5 {[%clk 0:02:50]}  gxh5 {[%clk 0:02:44]} 7. Ng5 {[%clk 0:02:51]}  e6 {[%clk 0:02:21]} 8. Qxh5 {[%clk 0:02:52]}  Qf6 {[%clk 0:02:08]} 9. Nb5 {[%clk 0:02:47]}  h6 {[%clk 0:01:06]} 10. Nf3 {[%clk 0:01:57]}  Kd8 {[%clk 0:01:02]} 11. d4 {[%clk 0:01:53]}  a6 {[%clk 0:01:00]} 12. e5 {[%clk 0:01:40]}  Qg6 {[%clk 0:00:53]} 13. Bg5+ {[%clk 0:01:38]}  Be7 {[%clk 0:00:51]} 14. Qxg6 {[%clk 0:01:34]}  fxg6 {[%clk 0:00:48]} 15. Nd6 {[%clk 0:01:35]}  Rh7 {[%clk 0:00:39]} 16. Bxe7+ {[%clk 0:01:31]}  Kxe7 {[%clk 0:00:32]} 17. dxc5 {[%clk 0:01:32]}  g5 {[%clk 0:00:22]} 18. g4 {[%clk 0:01:14]}  h5 {[%clk 0:00:22]} 19. Nxg5 {[%clk 0:01:04]}  Rg7 {[%clk 0:00:21]} 20. f4 {[%clk 0:01:03]}  hxg4 {[%clk 0:00:21]} 21. Nge4 {[%clk 0:00:56]}  Nd4 {[%clk 0:00:17]} 22. O-O-O {[%clk 0:00:54]}  Nf5 {[%clk 0:00:18]} 23. Nxf5+ {[%clk 0:00:52]}  exf5 {[%clk 0:00:18]} 24. Nd6 {[%clk 0:00:53]}  Ke6 {[%clk 0:00:16]} 25. Bc4+ {[%clk 0:00:52]}  Ke7 {[%clk 0:00:16]} 26. Nxf5+ {[%clk 0:00:53]} 1-0


[Site "https://www.chess.com"]

[Event "Titled Tuesday Blitz June 20 Late 2023"]
[White "Spata, German"]
[Black "Gascon Del Nogal, Jose Rafael"]
[WhiteFideId "113026"]
[BlackFideId "3902463"]
[WhiteElo "2260"]
[BlackElo "2473"]
[Result "1-0"]
[Round "6"]
[TimeControl "180+2"]
[Date "2023.06.20"]
[WhiteClock "0:00:09"]
[BlackClock "0:00:02"]
[Board "66"]

1. Nf3 {[%clk 0:02:57]}  c5 {[%clk 0:02:57]} 2. e3 {[%clk 0:02:54]}  Nf6 {[%clk 0:02:52]} 3. d4 {[%clk 0:02:53]}  e6 {[%clk 0:02:51]} 4. Be2 {[%clk 0:02:54]}  b6 {[%clk 0:02:51]} 5. O-O {[%clk 0:02:54]}  Bb7 {[%clk 0:02:52]} 6. b3 {[%clk 0:02:55]}  Be7 {[%clk 0:02:50]} 7. Bb2 {[%clk 0:02:55]}  O-O {[%clk 0:02:50]} 8. c4 {[%clk 0:02:55]}  cxd4 {[%clk 0:02:51]} 9. Nxd4 {[%clk 0:02:55]}  d6 {[%clk 0:02:48]} 10. Nc3 {[%clk 0:02:56]}  Nbd7 {[%clk 0:02:48]} 11. Rc1 {[%clk 0:02:55]}  a6 {[%clk 0:02:47]} 12. Bf3 {[%clk 0:02:55]}  Qc7 {[%clk 0:02:44]} 13. h3 {[%clk 0:02:55]}  Rac8 {[%clk 0:02:43]} 14. Bxb7 {[%clk 0:02:54]}  Qxb7 {[%clk 0:02:44]} 15. Qf3 {[%clk 0:02:55]}  Qxf3 {[%clk 0:02:41]} 16. Nxf3 {[%clk 0:02:56]}  Rc6 {[%clk 0:02:12]} 17. Rfd1 {[%clk 0:02:48]}  Rfc8 {[%clk 0:02:11]} 18. Nd4 {[%clk 0:02:39]}  R6c7 {[%clk 0:02:11]} 19. Ba3 {[%clk 0:02:40]}  Nc5 {[%clk 0:02:07]} 20. Nde2 {[%clk 0:02:28]}  Kf8 {[%clk 0:02:05]} 21. Ng3 {[%clk 0:02:27]}  h5 {[%clk 0:02:02]} 22. Rc2 {[%clk 0:02:11]}  h4 {[%clk 0:01:57]} 23. Bxc5 {[%clk 0:02:02]}  Rxc5 {[%clk 0:01:37]} 24. Nge4 {[%clk 0:02:00]}  R5c6 {[%clk 0:01:38]} 25. Nxf6 {[%clk 0:01:55]}  gxf6 {[%clk 0:01:38]} 26. Rcd2 {[%clk 0:01:43]}  b5 {[%clk 0:01:37]} 27. Ne4 {[%clk 0:01:41]}  bxc4 {[%clk 0:01:35]} 28. bxc4 {[%clk 0:01:40]}  Rd8 {[%clk 0:01:26]} 29. Rc2 {[%clk 0:01:21]}  d5 {[%clk 0:01:22]} 30. Nd2 {[%clk 0:01:13]}  dxc4 {[%clk 0:01:03]} 31. Kf1 {[%clk 0:00:55]}  Bb4 {[%clk 0:00:37]} 32. a3 {[%clk 0:00:38]}  Ba5 {[%clk 0:00:22]} 33. Ke2 {[%clk 0:00:31]}  Rcd6 {[%clk 0:00:22]} 34. Nxc4 {[%clk 0:00:29]}  Rxd1 {[%clk 0:00:20]} 35. Nxa5 {[%clk 0:00:29]}  Rg1 {[%clk 0:00:18]} 36. Kf3 {[%clk 0:00:28]}  Rd5 {[%clk 0:00:13]} 37. Nc6 {[%clk 0:00:22]}  Rf5+ {[%clk 0:00:13]} 38. Kg4 {[%clk 0:00:21]}  Rxg2+ {[%clk 0:00:13]} 39. Kxh4 {[%clk 0:00:21]}  Kg7 {[%clk 0:00:11]} 40. Ne7 {[%clk 0:00:19]}  Rfxf2 {[%clk 0:00:08]} 41. Rc8 {[%clk 0:00:19]}  Kh7 {[%clk 0:00:06]} 42. Rf8 {[%clk 0:00:16]}  Kg7 {[%clk 0:00:06]} 43. Rg8+ {[%clk 0:00:16]}  Kh7 {[%clk 0:00:07]} 44. Rf8 {[%clk 0:00:16]}  Rg7 {[%clk 0:00:07]} 45. Nc8 {[%clk 0:00:09]}  Rf5 {[%clk 0:00:07]} 46. Nd6 {[%clk 0:00:09]}  Re5 {[%clk 0:00:03]} 47. Nxf7 {[%clk 0:00:09]}  Re4+ {[%clk 0:00:03]} 48. Kh5 {[%clk 0:00:09]}  Rxe3 {[%clk 0:00:02]} 49. Rh8# {[%clk 0:00:09]} 1-0


[Site "https://www.chess.com"]

[Event "Titled Tuesday Blitz June 20 Late 2023"]
[White "Kaplan, Avi Harrison"]
[Black "Martic, Ivan"]
[WhiteFideId "30934559"]
[BlackFideId "929301"]
[WhiteElo "1983"]
[BlackElo "2346"]
[Result "0-1"]
[Round "6"]
[TimeControl "180+2"]
[Date "2023.06.20"]
[WhiteClock "0:00:00"]
[BlackClock "0:00:10"]
[Board "67"]

1. b3 {[%clk 0:03:00]}  d6 {[%clk 0:02:56]} 2. Bb2 {[%clk 0:03:01]}  e5 {[%clk 0:02:55]} 3. e3 {[%clk 0:02:57]}  Nd7 {[%clk 0:02:54]} 4. c4 {[%clk 0:02:56]}  Ngf6 {[%clk 0:02:54]} 5. Nf3 {[%clk 0:02:53]}  g6 {[%clk 0:02:54]} 6. d4 {[%clk 0:02:53]}  Bg7 {[%clk 0:02:51]} 7. dxe5 {[%clk 0:02:53]}  Ng4 {[%clk 0:02:51]} 8. Nbd2 {[%clk 0:02:26]}  Ndxe5 {[%clk 0:02:42]} 9. Nxe5 {[%clk 0:02:24]}  Nxe5 {[%clk 0:02:39]} 10. Qc1 {[%clk 0:02:18]}  O-O {[%clk 0:02:35]} 11. Be2 {[%clk 0:02:16]}  Re8 {[%clk 0:02:29]} 12. O-O {[%clk 0:02:13]}  Bf5 {[%clk 0:02:25]} 13. f4 {[%clk 0:02:08]}  Ng4 {[%clk 0:02:10]} 14. e4 {[%clk 0:01:54]}  Bxb2 {[%clk 0:02:06]} 15. Qxb2 {[%clk 0:01:55]}  Bd7 {[%clk 0:01:58]} 16. h3 {[%clk 0:01:45]}  Nf6 {[%clk 0:01:54]} 17. e5 {[%clk 0:01:43]}  Bc6 {[%clk 0:01:43]} 18. Rae1 {[%clk 0:01:22]}  dxe5 {[%clk 0:01:36]} 19. fxe5 {[%clk 0:01:21]}  Nd7 {[%clk 0:01:36]} 20. Bg4 {[%clk 0:01:11]}  Nc5 {[%clk 0:01:14]} 21. Qc3 {[%clk 0:00:40]}  Qd3 {[%clk 0:01:06]} 22. Qxd3 {[%clk 0:00:34]}  Nxd3 {[%clk 0:01:07]} 23. Re3 {[%clk 0:00:35]}  Rad8 {[%clk 0:00:55]} 24. e6 {[%clk 0:00:27]}  f5 {[%clk 0:00:54]} 25. Be2 {[%clk 0:00:03]}  Nb4 {[%clk 0:00:49]} 26. Nf3 {[%clk 0:00:03]}  Nxa2 {[%clk 0:00:41]} 27. Ng5 {[%clk 0:00:04]}  Re7 {[%clk 0:00:34]} 28. Re1 {[%clk 0:00:01]}  Nb4 {[%clk 0:00:34]} 29. Bf3 {[%clk 0:00:02]}  Nc2 {[%clk 0:00:33]} 30. R1e2 {[%clk 0:00:01]}  Nxe3 {[%clk 0:00:32]} 31. Rxe3 {[%clk 0:00:02]}  Bxf3 {[%clk 0:00:29]} 32. Nxf3 {[%clk 0:00:03]}  Rd6 {[%clk 0:00:26]} 33. Ng5 {[%clk 0:00:04]}  h6 {[%clk 0:00:24]} 34. Nf3 {[%clk 0:00:03]}  Rexe6 {[%clk 0:00:23]} 35. Rc3 {[%clk 0:00:03]}  Re2 {[%clk 0:00:21]} 36. Kh2 {[%clk 0:00:03]}  g5 {[%clk 0:00:21]} 37. c5 {[%clk 0:00:03]}  Rd1 {[%clk 0:00:18]} 38. c6 {[%clk 0:00:03]}  b6 {[%clk 0:00:15]} 39. b4 {[%clk 0:00:04]}  a6 {[%clk 0:00:15]} 40. b5 {[%clk 0:00:04]}  axb5 {[%clk 0:00:15]} 41. Ra3 {[%clk 0:00:04]}  Rf1 {[%clk 0:00:14]} 42. Kg3 {[%clk 0:00:04]}  f4+ {[%clk 0:00:14]} 43. Kg4 {[%clk 0:00:03]}  Kg7 {[%clk 0:00:13]} 44. Kh5 {[%clk 0:00:02]}  Rxg2 {[%clk 0:00:12]} 45. h4 {[%clk 0:00:02]}  Rg3 {[%clk 0:00:11]} 46. Ra7 {[%clk 0:00:02]}  Rfxf3 {[%clk 0:00:10]} 47. Rxc7+ {[%clk 0:00:03]}  Kf6 {[%clk 0:00:11]} 48. Rh7 {[%clk 0:00:02]}  Rh3 {[%clk 0:00:09]} 49. Rxh6+ {[%clk 0:00:00]}  Kf5 {[%clk 0:00:10]} 0-1


[Site "https://www.chess.com"]

[Event "Titled Tuesday Blitz June 20 Late 2023"]
[White "Nikologorsky, Matfei"]
[Black "Arabidze, Meri"]
[WhiteFideId "24102474"]
[BlackFideId "13604040"]
[WhiteElo "2153"]
[BlackElo "2405"]
[Result "1-0"]
[Round "6"]
[TimeControl "180+2"]
[Date "2023.06.20"]
[WhiteClock "0:00:16"]
[BlackClock "0:00:15"]
[Board "68"]

1. e4 {[%clk 0:03:00]}  c5 {[%clk 0:02:59]} 2. Nf3 {[%clk 0:03:00]}  e6 {[%clk 0:03:00]} 3. d4 {[%clk 0:03:00]}  cxd4 {[%clk 0:03:01]} 4. Nxd4 {[%clk 0:03:01]}  Nc6 {[%clk 0:03:01]} 5. Nc3 {[%clk 0:03:00]}  a6 {[%clk 0:03:02]} 6. Be2 {[%clk 0:02:59]}  Qc7 {[%clk 0:02:59]} 7. O-O {[%clk 0:02:58]}  Nf6 {[%clk 0:02:59]} 8. Be3 {[%clk 0:02:55]}  Be7 {[%clk 0:02:55]} 9. Qe1 {[%clk 0:02:50]}  O-O {[%clk 0:02:51]} 10. Rd1 {[%clk 0:02:36]}  d6 {[%clk 0:02:50]} 11. f4 {[%clk 0:02:31]}  Bd7 {[%clk 0:02:42]} 12. Bf3 {[%clk 0:02:27]}  b5 {[%clk 0:02:40]} 13. a3 {[%clk 0:02:25]}  Rab8 {[%clk 0:02:39]} 14. g4 {[%clk 0:02:21]}  b4 {[%clk 0:02:36]} 15. axb4 {[%clk 0:02:21]}  Nxb4 {[%clk 0:02:27]} 16. g5 {[%clk 0:02:19]}  Ne8 {[%clk 0:02:24]} 17. Rf2 {[%clk 0:02:14]}  Qc8 {[%clk 0:01:40]} 18. Rg2 {[%clk 0:01:57]}  e5 {[%clk 0:01:38]} 19. fxe5 {[%clk 0:01:37]}  dxe5 {[%clk 0:01:37]} 20. Nf5 {[%clk 0:01:37]}  Bxf5 {[%clk 0:01:36]} 21. exf5 {[%clk 0:01:37]}  Qxf5 {[%clk 0:01:29]} 22. Be4 {[%clk 0:01:37]}  Qc8 {[%clk 0:01:26]} 23. Qh4 {[%clk 0:01:21]}  g6 {[%clk 0:01:25]} 24. Rg3 {[%clk 0:01:17]}  h5 {[%clk 0:01:18]} 25. Rf1 {[%clk 0:01:08]}  Bc5 {[%clk 0:01:14]} 26. Kh1 {[%clk 0:01:07]}  Bxe3 {[%clk 0:01:14]} 27. Rxe3 {[%clk 0:01:08]}  Nd6 {[%clk 0:01:10]} 28. Rf6 {[%clk 0:00:53]}  Qc4 {[%clk 0:01:02]} 29. Qf2 {[%clk 0:00:31]}  Nxe4 {[%clk 0:00:52]} 30. Rxe4 {[%clk 0:00:29]}  Qc7 {[%clk 0:00:44]} 31. Rh4 {[%clk 0:00:26]}  Qb7+ {[%clk 0:00:39]} 32. Kg1 {[%clk 0:00:25]}  Nd5 {[%clk 0:00:37]} 33. Ne4 {[%clk 0:00:23]}  Nf4 {[%clk 0:00:34]} 34. Rfxf4 {[%clk 0:00:18]}  exf4 {[%clk 0:00:35]} 35. Nf6+ {[%clk 0:00:19]}  Kh8 {[%clk 0:00:26]} 36. Qe2 {[%clk 0:00:16]}  Qb6+ {[%clk 0:00:26]} 37. Kg2 {[%clk 0:00:15]}  Qe6 {[%clk 0:00:24]} 38. Rxh5+ {[%clk 0:00:14]}  gxh5 {[%clk 0:00:15]} 39. Qxh5+ {[%clk 0:00:15]}  Kg7 {[%clk 0:00:15]} 40. Qh7# {[%clk 0:00:16]} 1-0


[Site "https://www.chess.com"]

[Event "Titled Tuesday Blitz June 20 Late 2023"]
[White "Jonkman, Harmen"]
[Black "Seemann, Jakub"]
[WhiteFideId "1002708"]
[BlackFideId "21874697"]
[WhiteElo "2368"]
[BlackElo "2364"]
[Result "0-1"]
[Round "6"]
[TimeControl "180+2"]
[Date "2023.06.20"]
[WhiteClock "0:00:00"]
[BlackClock "0:00:32"]
[Board "69"]

1. d4 {[%clk 0:02:56]}  Nf6 {[%clk 0:03:00]} 2. Nf3 {[%clk 0:02:55]}  g6 {[%clk 0:03:00]} 3. Nc3 {[%clk 0:02:54]}  d5 {[%clk 0:02:58]} 4. Bf4 {[%clk 0:02:53]}  Bg7 {[%clk 0:02:58]} 5. e3 {[%clk 0:02:53]}  O-O {[%clk 0:02:58]} 6. Bd3 {[%clk 0:02:52]}  c5 {[%clk 0:02:59]} 7. dxc5 {[%clk 0:02:45]}  Nbd7 {[%clk 0:02:58]} 8. O-O {[%clk 0:02:40]}  Nxc5 {[%clk 0:02:47]} 9. Be2 {[%clk 0:02:40]}  Nfe4 {[%clk 0:02:45]} 10. Be5 {[%clk 0:02:34]}  Nxc3 {[%clk 0:02:40]} 11. Bxc3 {[%clk 0:02:30]}  Bxc3 {[%clk 0:02:38]} 12. bxc3 {[%clk 0:02:30]}  e6 {[%clk 0:02:38]} 13. c4 {[%clk 0:02:27]}  dxc4 {[%clk 0:02:35]} 14. Bxc4 {[%clk 0:02:25]}  b6 {[%clk 0:02:35]} 15. Nd4 {[%clk 0:02:10]}  Bb7 {[%clk 0:02:25]} 16. Qg4 {[%clk 0:02:07]}  Qf6 {[%clk 0:02:18]} 17. a4 {[%clk 0:02:01]}  e5 {[%clk 0:02:10]} 18. Nb5 {[%clk 0:01:53]}  a6 {[%clk 0:02:04]} 19. Nc3 {[%clk 0:01:46]}  Rfd8 {[%clk 0:02:02]} 20. Rfd1 {[%clk 0:01:42]}  e4 {[%clk 0:01:56]} 21. Ne2 {[%clk 0:01:31]}  Bc8 {[%clk 0:01:41]} 22. Qg3 {[%clk 0:01:26]}  Be6 {[%clk 0:01:39]} 23. Bxe6 {[%clk 0:01:19]}  Qxe6 {[%clk 0:01:36]} 24. h4 {[%clk 0:01:15]}  h5 {[%clk 0:01:23]} 25. Nf4 {[%clk 0:01:11]}  Qf5 {[%clk 0:01:19]} 26. Rab1 {[%clk 0:01:07]}  Nxa4 {[%clk 0:01:14]} 27. c4 {[%clk 0:00:50]}  b5 {[%clk 0:01:06]} 28. cxb5 {[%clk 0:00:49]}  axb5 {[%clk 0:01:06]} 29. Kh2 {[%clk 0:00:42]}  Nc3 {[%clk 0:00:59]} 30. Rxd8+ {[%clk 0:00:40]}  Rxd8 {[%clk 0:01:00]} 31. Ra1 {[%clk 0:00:37]}  b4 {[%clk 0:00:58]} 32. Ra6 {[%clk 0:00:34]}  Qg4 {[%clk 0:00:51]} 33. Rb6 {[%clk 0:00:25]}  Qxg3+ {[%clk 0:00:49]} 34. Kxg3 {[%clk 0:00:25]}  Na2 {[%clk 0:00:50]} 35. Ne2 {[%clk 0:00:16]}  Rd2 {[%clk 0:00:43]} 36. Nd4 {[%clk 0:00:16]}  Rb2 {[%clk 0:00:39]} 37. f3 {[%clk 0:00:15]}  exf3 {[%clk 0:00:38]} 38. gxf3 {[%clk 0:00:15]}  Nc3 {[%clk 0:00:38]} 39. Nc6 {[%clk 0:00:05]}  Nd5 {[%clk 0:00:34]} 40. Rb5 {[%clk 0:00:04]}  Nxe3 {[%clk 0:00:34]} 41. Rxb4 {[%clk 0:00:03]}  Rg2+ {[%clk 0:00:34]} 42. Kh3 {[%clk 0:00:02]}  Rc2 {[%clk 0:00:33]} 43. Rb8+ {[%clk 0:00:01]}  Kg7 {[%clk 0:00:33]} 44. Ne5 {[%clk 0:00:01]}  Rc5 {[%clk 0:00:30]} 45. Nd3 {[%clk 0:00:01]}  Rf5 {[%clk 0:00:31]} 46. Kg3 {[%clk 0:00:00]}  Nf1+ {[%clk 0:00:32]} 0-1


[Site "https://www.chess.com"]